[Event "ISR-chT 2020"]
[Site "Israel"]
[Date "2020.01.10"]
[Round "1.6"]
[White "Lavi, Idan"]
[Black "Iliaguev, Nisim"]
[Result "0-1"]
[ECO "B10"]
[WhiteElo "2095"]
[BlackElo "2289"]
[Annotator "RC"]
[PlyCount "100"]
[EventDate "2020.01.10"]
[EventType "team-tourn"]
[EventCountry "ISR"]
[SourceTitle "playchess.com"]
[Source "ChessBase"]
[SourceQuality "1"]
[TimeControl "40/5400+30:1800+30"]

1. e4 {[%emt 0:00:00]} c6 {[%emt 0:00:00]} 2. Bc4 {[%emt 0:00:00]} d5 {[%emt 0:00:31]} 3. Bb3 {[%emt 0:00:06]} g6 {[%emt 0:05:32]} 4. e5 {[%emt 0:02:10]} c5 {[%emt 0:06:47]} 5. c3 {[%emt 0:03:32]} c4 {[%emt 0:05:02]} 6. Bc2 {[%emt 0:02:48]} Nc6 {[%emt 0:00:16]} 7. f4 {[%emt 0:03:27]} Nh6 {[%emt 0:02:45]} 8. Nf3 {[%emt 0:04:28]} Qb6 {[%emt 0:00:23]} 9. d4 {[%emt 0:01:30]} cxd3 {[%emt 0:01:34]} 10. Bxd3 {[%emt 0:00:32]} Bf5 {[%emt 0:02:39]} 11. Bxf5 {[%emt 0:22:58]} Nxf5 {[%emt 0:00:02]} 12. Qxd5 {[%emt 0:05:55]} e6 {[%emt 0:00:26]} 13. Qb3 {[%emt 0:10:21]} Qc5 {[%emt 0:00:47]} 14. Na3 {[%emt 0:05:04]} Ne3 {[%emt 0:01:18]} 15. Nd4 {[%emt 0:11:53]} Nxd4 {[%emt 0:05:54]} 16. cxd4 {[%emt 0:01:11]} Qb4+ {[%emt 0:00:45]} 17. Qxb4 {[%emt 0:01:48]} Bxb4+ {[%emt 0:00:02]} 18. Kf2 {[%emt 0:01:37]} Nd5 {[%emt 0:00:22]} 19. Nc2 {[%emt 0:10:01]} Rc8 {[%emt 0:00:08]} 20. Nxb4 {[%emt 0:01:51]} Nxb4 {[%emt 0:00:02]} 21. Rd1 {[%emt 0:02:37]} Rc2+ {[%emt 0:01:32]} 22. Kf3 {[%emt 0:00:43]} Kd7 {[%emt 0:01:57]} 23. Be3 {[%emt 0:02:33]} Rhc8 {[%emt 0:01:16]} 24. a3 {[%emt 0:00:11]} Nd5 {[%emt 0:00:17]} 25. Rab1 {[%emt 0:01:41]} R8c4 {[%emt 0:05:01]} 26. h3 {[%emt 0:02:37]} b5 {[%emt 0:02:32]} 27. g3 {[%emt 0:00:57]} Kc6 {[%emt 0:02:59]} 28. Bf2 {[%emt 0:00:53]} a6 {[%emt 0:00:24]} 29. Be3 {[%emt 0:00:11]} a5 {[%emt 0:03:51]} 30. Bf2 {[%emt 0:00:24]} Ne7 {[%emt 0:01:27]} 31. g4 {[%emt 0:00:46]} Kd5 {[%emt 0:00:19]} 32. Be1 {[%emt 0:00:40]} Nc6 {[%emt 0:01:16]} 33. b3 {[%emt 0:00:32]} Rxd4 {[%emt 0:03:08]} 34. Bf2 {[%emt 0:00:01]} Rc3+ {[%emt 0:02:01]} 35. Kg2 {[%emt 0:00:34]} Rxd1 {[%emt 0:01:41]} 36. Rxd1+ {[%emt 0:00:01]} Ke4 {[%emt 0:00:08]} 37. a4 {[%emt 0:01:24]} b4 {[%emt 0:02:15]} 38. Rd7 {[%emt 0:00:24]} Kxf4 {[%emt 0:00:33]} 39. Rxf7+ {[%emt 0:00:04]} Kxe5 {[%emt 0:00:16]} 40. Bg3+ {[%emt 0:00:54]} Ke4 {[%emt 0:01:12]} 41. Rxh7 {[%emt 0:06:05]} Rxb3 {[%emt 0:00:33]} 42. h4 {[%emt 0:00:31]} Rb2+ {[%emt 0:06:58]} 43. Kh3 {[%emt 0:00:53]} b3 {[%emt 0:00:22]} 44. h5 {[%emt 0:01:00]} gxh5 {[%emt 0:00:30]} 45. gxh5 {[%emt 0:00:39]} Rb1 {[%emt 0:00:56]} 46. Rb7 {[%emt 0:03:10]} b2 {[%emt 0:02:48]} 47. h6 {[%emt 0:00:35]} Nb4 {[%emt 0:00:44]} 48. h7 {[%emt 0:03:36]} Rh1+ {[%emt 0:00:20]} 49. Bh2 {[%emt 0:00:09]} b1=Q {[%emt 0:00:15]} 50. h8=Q {[%emt 0:04:51]} Qf1+ {[%emt 0:00:18]} 0-1

[Event "ISR-chT 2020"]
[Site "Israel"]
[Date "2020.01.10"]
[Round "1.13"]
[White "Sutovsky, Emil"]
[Black "Gorodetzky, David"]
[Result "1-0"]
[ECO "B12"]
[WhiteElo "2643"]
[BlackElo "2486"]
[Annotator "ChessBase"]
[PlyCount "89"]
[EventDate "2020.01.10"]
[EventType "team-tourn"]
[EventCountry "ISR"]
[SourceTitle "playchess.com"]
[Source "ChessBase"]
[SourceQuality "1"]
[TimeControl "40/5400+30:1800+30"]

1. e4 {[%emt 0:00:00]} c6 {[%emt 0:00:00]} 2. d4 {[%emt 0:00:00]} d5 {[%emt 0:00:00]} 3. e5 {[%emt 0:00:00]} c5 {[%emt 0:02:11]} 4. dxc5 {[%emt 0:05:45]} e6 {[%emt 0:00:07]} 5. Nf3 {[%emt 0:03:18]} Bxc5 {[%emt 0:05:52]} 6. Bd3 {[%emt 0:00:08]} Nc6 {[%emt 0:00:49]} 7. a3 {[%emt 0:02:28]} Nge7 {[%emt 0:02:27]} 8. b4 {[%emt 0:00:03]} Bb6 {[%emt 0:00:18]} 9. Bb2 {[%emt 0:01:18]} Ng6 {[%emt 0:07:57]} 10. O-O {[%emt 0:01:12]} O-O {[%emt 0:03:37]} 11. g3 {[%emt 0:01:49]} f6 {[%emt 0:09:12]} 12. exf6 {[%emt 0:00:26]} gxf6 {[%emt 0:02:27]} 13. c4 {[%emt 0:00:10]} dxc4 {[%emt 0:13:02]} 14. Bxc4 {[%emt 0:02:51]} Qxd1 {[%emt 0:00:08]} 15. Rxd1 {[%emt 0:00:04]} Kg7 {[%emt 0:00:08]} 16. Be2 {[%emt 0:06:27]} e5 {[%emt 0:03:35]} 17. Nc3 {[%emt 0:00:49]} Bg4 {[%emt 0:05:48]} 18. Nd2 {[%emt 0:07:25]} Be6 {[%emt 0:05:53]} 19. Nb5 {[%emt 0:04:03]} a6 {[%emt 0:08:07]} 20. Nd6 {[%emt 0:02:11]} Bd4 {[%emt 0:00:27]} 21. Bxd4 {[%emt 0:07:28]} Nxd4 {[%emt 0:00:41]} 22. Bc4 {[%emt 0:18:03]} Bg4 {[%emt 0:03:54]} 23. Rdc1 {[%emt 0:03:59]} b5 {[%emt 0:03:00]} 24. Bf1 {[%emt 0:08:15]} Ra7 {[%emt 0:05:26]} 25. a4 {[%emt 0:00:41]} Rd8 {[%emt 0:04:08]} 26. N6e4 {[%emt 0:00:47]} bxa4 {[%emt 0:01:23]} 27. Nc5 {[%emt 0:00:31]} Nc6 {[%emt 0:08:07]} 28. Nc4 {[%emt 0:06:01]} Nxb4 {[%emt 0:02:27]} 29. Na5 {[%emt 0:01:13]} Bd7 {[%emt 0:01:32]} 30. Rab1 {[%emt 0:07:16]} Na2 {[%emt 0:01:11]} 31. Rc4 {[%emt 0:00:03]} Kh6 {[%emt 0:00:57]} 32. Nab7 {[%emt 0:05:48]} Rb8 {[%emt 0:00:30]} 33. Bg2 {[%emt 0:00:17]} Bc8 {[%emt 0:00:37]} 34. Rb2 {[%emt 0:00:55]} f5 {[%emt 0:00:31]} 35. Rxa2 {[%emt 0:00:41]} Bxb7 {[%emt 0:00:12]} 36. Bxb7 {[%emt 0:00:54]} Raxb7 {[%emt 0:00:09]} 37. Nxb7 {[%emt 0:00:05]} Rxb7 {[%emt 0:00:09]} 38. Rcxa4 {[%emt 0:00:21]} e4 {[%emt 0:00:58]} 39. Rxa6 {[%emt 0:00:19]} Kg5 {[%emt 0:00:08]} 40. Kg2 {[%emt 0:03:43]} Rf7 {[%emt 0:01:21]} 41. R2a5 {[%emt 0:31:08]} Kh6 {[%emt 0:30:32]} 42. Ra7 {[%emt 0:00:52]} Rf8 {[%emt 0:00:00]} 43. Rb7 {[%emt 0:00:00]} f4 {[%emt 0:00:00]} 44. g4 {[%emt 0:00:00]} Nh4+ {[%emt 0:00:00]} 45. Kh3 {[%emt 0:00:00]} 1-0

[Event "ISR-chT 2020"]
[Site "Israel"]
[Date "2020.01.10"]
[Round "1.23"]
[White "Friedland, Moshe"]
[Black "Kobo, Ori"]
[Result "0-1"]
[ECO "C02"]
[WhiteElo "2257"]
[BlackElo "2445"]
[Annotator "RC"]
[PlyCount "84"]
[EventDate "2020.01.10"]
[EventType "team-tourn"]
[EventCountry "ISR"]
[SourceTitle "playchess.com"]
[Source "ChessBase"]
[SourceQuality "1"]
[TimeControl "40/5400+30:1800+30"]

1. e4 {[%emt 0:00:00]} e6 {[%emt 0:00:00]} 2. d4 {[%emt 0:00:12]} d5 {[%emt 0:00:00]} 3. e5 {[%emt 0:00:02]} c5 {[%emt 0:00:07]} 4. c3 {[%emt 0:00:04]} Nc6 {[%emt 0:00:16]} 5. Nf3 {[%emt 0:00:04]} Bd7 {[%emt 0:00:14]} 6. Na3 {[%emt 0:01:37]} f6 {[%emt 0:00:24]} 7. Bd3 {[%emt 0:01:29]} cxd4 {[%emt 0:04:50]} 8. cxd4 {[%emt 0:00:29]} Bb4+ {[%emt 0:00:52]} 9. Bd2 {[%emt 0:02:11]} Qb6 {[%emt 0:01:39]} 10. O-O {[%emt 0:10:27]} fxe5 {[%emt 0:13:44]} 11. Nxe5 {[%emt 0:12:40]} Nxe5 {[%emt 0:01:22]} 12. dxe5 {[%emt 0:00:16]} Ne7 {[%emt 0:10:09]} 13. Bg5 {[%emt 0:07:06]} Nc6 {[%emt 0:15:12]} 14. Qh5+ {[%emt 0:01:16]} Kf8 {[%emt 0:01:13]} 15. Bxh7 {[%emt 0:10:14]} Be8 {[%emt 0:02:27]} 16. Qh4 {[%emt 0:06:15]} Bf7 {[%emt 0:02:55]} 17. Nc2 {[%emt 0:21:19]} Be7 {[%emt 0:04:53]} 18. Bf6 {[%emt 0:02:04]} gxf6 {[%emt 0:02:00]} 19. Qh6+ {[%emt 0:00:03]} Ke8 {[%emt 0:00:08]} 20. Qg7 {[%emt 0:00:05]} Rf8 {[%emt 0:02:09]} 21. exf6 {[%emt 0:00:18]} Qxb2 {[%emt 0:01:43]} 22. Rab1 {[%emt 0:01:23]} Qxf6 {[%emt 0:00:38]} 23. Qg3 {[%emt 0:00:09]} Rh8 {[%emt 0:03:39]} 24. Bd3 {[%emt 0:00:24]} Ne5 {[%emt 0:06:03]} 25. Rxb7 {[%emt 0:04:07]} Rg8 {[%emt 0:01:31]} 26. Bb5+ {[%emt 0:01:03]} Kf8 {[%emt 0:00:02]} 27. Qe3 {[%emt 0:05:27]} Qg6 {[%emt 0:03:21]} 28. g3 {[%emt 0:00:41]} Qh5 {[%emt 0:02:22]} 29. Be2 {[%emt 0:01:47]} Ng4 {[%emt 0:05:20]} 30. Bxg4 {[%emt 0:00:09]} Rxg4 {[%emt 0:02:12]} 31. Rxa7 {[%emt 0:02:41]} Rxa7 {[%emt 0:01:01]} 32. Qxa7 {[%emt 0:00:05]} Rg8 {[%emt 0:02:54]} 33. Qb8+ {[%emt 0:04:29]} Kg7 {[%emt 0:00:24]} 34. Qf4 {[%emt 0:00:01]} Rh8 {[%emt 0:01:10]} 35. h4 {[%emt 0:00:16]} Qg6 {[%emt 0:01:58]} 36. Ne3 {[%emt 0:01:18]} Rxh4 {[%emt 0:01:18]} 37. Qc7 {[%emt 0:00:11]} Bf6 {[%emt 0:00:53]} 38. Ng2 {[%emt 0:00:45]} Rh8 {[%emt 0:02:09]} 39. Nf4 {[%emt 0:00:49]} Qe4 {[%emt 0:01:54]} 40. f3 {[%emt 0:00:04]} Qe3+ {[%emt 0:01:00]} 41. Kg2 {[%emt 0:30:46]} Bd4 {[%emt 0:32:38]} 42. Rd1 {[%emt 0:01:22]} Qf2# {[%emt 0:00:36]} 0-1

[Event "ISR-chT 2020"]
[Site "Israel"]
[Date "2020.01.10"]
[Round "1.30"]
[White "Oratovsky, Michael"]
[Black "Gorshtein, Ido"]
[Result "0-1"]
[ECO "B15"]
[WhiteElo "2434"]
[BlackElo "2372"]
[Annotator "RC"]
[PlyCount "60"]
[EventDate "2020.01.10"]
[EventType "team-tourn"]
[EventCountry "ISR"]
[SourceTitle "playchess.com"]
[Source "ChessBase"]
[SourceQuality "1"]
[TimeControl "40/5400+30:1800+30"]

1. e4 {[%emt 0:00:00]} c6 {[%emt 0:00:00]} 2. d4 {[%emt 0:00:19]} d5 {[%emt 0:00:00]} 3. Nd2 {[%emt 0:00:16]} dxe4 {[%emt 0:00:00]} 4. Nxe4 {[%emt 0:00:03]} Nf6 {[%emt 0:00:00]} 5. Nxf6+ {[%emt 0:00:05]} exf6 {[%emt 0:00:00]} 6. c3 {[%emt 0:00:14]} Bd6 {[%emt 0:00:00]} 7. Bd3 {[%emt 0:00:06]} O-O {[%emt 0:00:02]} 8. Ne2 {[%emt 0:00:09]} Re8 {[%emt 0:00:08]} 9. O-O {[%emt 0:00:20]} Qc7 {[%emt 0:02:53]} 10. Ng3 {[%emt 0:12:13]} Nd7 {[%emt 0:03:07]} 11. Nf5 {[%emt 0:12:47]} Nf8 {[%emt 0:15:14]} 12. Nxd6 {[%emt 0:08:18]} Qxd6 {[%emt 0:00:02]} 13. Qf3 {[%emt 0:11:04]} Ng6 {[%emt 0:00:29]} 14. Be3 {[%emt 0:13:55]} Be6 {[%emt 0:00:54]} 15. Rfe1 {[%emt 0:01:26]} Re7 {[%emt 0:06:01]} 16. Qg3 {[%emt 0:11:38]} Qd7 {[%emt 0:00:17]} 17. c4 {[%emt 0:14:01]} Bf5 {[%emt 0:03:35]} 18. Be2 {[%emt 0:04:14]} Rae8 {[%emt 0:01:27]} 19. Red1 {[%emt 0:03:00]} Be4 {[%emt 0:01:33]} 20. Rac1 {[%emt 0:00:43]} Qf5 {[%emt 0:03:24]} 21. d5 {[%emt 0:04:23]} cxd5 {[%emt 0:05:56]} 22. cxd5 {[%emt 0:00:02]} h5 {[%emt 0:14:10]} 23. d6 {[%emt 0:00:41]} Rd7 {[%emt 0:00:51]} 24. Rc5 {[%emt 0:00:50]} Re5 {[%emt 0:01:11]} 25. Rxe5 {[%emt 0:00:58]} fxe5 {[%emt 0:02:25]} 26. Bxa7 {[%emt 0:00:44]} Nf4 {[%emt 0:01:11]} 27. Bf1 {[%emt 0:00:13]} Bxg2 {[%emt 0:00:45]} 28. Be3 {[%emt 0:00:42]} Bxf1 {[%emt 0:00:19]} 29. Kxf1 {[%emt 0:00:05]} Rxd6 {[%emt 0:00:12]} 30. Qf3 {[%emt 0:00:56]} Qh3+ {[%emt 0:00:17]} 0-1

[Event "ISR-chT 2020"]
[Site "Israel"]
[Date "2020.01.18"]
[Round "4.1"]
[White "Tal, Baron"]
[Black "Emil, Sutovsky"]
[Result "0-1"]
[ECO "B66"]
[WhiteElo "2529"]
[BlackElo "2643"]
[Annotator "ChessBase"]
[PlyCount "62"]
[EventDate "2020.01.10"]
[EventType "team-tourn"]
[EventCountry "ISR"]
[SourceTitle "playchess.com"]
[Source "ChessBase"]
[SourceQuality "1"]
[TimeControl "40/5400+30:1800+30"]

1. e4 {[%emt 0:00:00]} c5 {[%emt 0:00:45]} 2. Nf3 {[%emt 0:00:00]} Nc6 {[%emt 0:00:29]} 3. d4 cxd4 {[%emt 0:00:05]} 4. Nxd4 {[%emt 0:00:00]} Nf6 {[%emt 0:00:07]} 5. Nc3 {[%emt 0:00:00]} d6 {[%emt 0:00:46]} 6. Bg5 {[%emt 0:00:00]} e6 {[%emt 0:00:19]} 7. Qd2 {[%emt 0:00:09]} a6 {[%emt 0:01:47]} 8. O-O-O {[%emt 0:00:06]} h6 {[%emt 0:00:30]} 9. Nxc6 bxc6 {[%emt 0:00:06]} 10. Bf4 {[%emt 0:00:22]} d5 {[%emt 0:00:02]} 11. Qe3 {[%emt 0:01:00]} Be7 {[%emt 0:00:37]} 12. Be2 {[%emt 0:00:50]} O-O {[%emt 0:01:03]} 13. e5 {[%emt 0:05:17]} Nh7 {[%emt 0:01:11]} 14. h4 {[%emt 0:05:54]} Rb8 {[%emt 0:03:59]} 15. Rd3 {[%emt 0:11:26]} Kh8 {[%emt 0:12:30]} 16. g4 {[%emt 0:03:41]} c5 {[%emt 0:02:40]} 17. Qd2 {[%emt 0:32:12]} d4 {[%emt 0:04:22]} 18. Nd1 {[%emt 0:00:23]} Qd5 {[%emt 0:03:30]} 19. Bf3 {[%emt 0:00:49]} Qxa2 {[%emt 0:01:00]} 20. Ra3 {[%emt 0:00:07]} Qc4 {[%emt 0:00:23]} 21. g5 {[%emt 0:01:43]} Bb7 {[%emt 0:08:00]} 22. gxh6 {[%emt 0:01:07]} g6 {[%emt 0:01:05]} 23. Be2 {[%emt 0:05:59]} Qd5 {[%emt 0:03:50]} 24. Rg1 {[%emt 0:00:08]} c4 {[%emt 0:02:22]} 25. Ra4 {[%emt 0:02:36]} Rfc8 {[%emt 0:03:23]} 26. Bg3 {[%emt 0:09:42]} Qb5 {[%emt 0:09:01]} 27. Ra1 {[%emt 0:02:46]} Be4 {[%emt 0:09:58]} 28. Qxd4 {[%emt 0:02:49]} Bxc2 {[%emt 0:01:44]} 29. Kxc2 {[%emt 0:02:29]} Qb3+ {[%emt 0:00:17]} 30. Kc1 {[%emt 0:03:29]} c3 {[%emt 0:00:47]} 31. bxc3 {[%emt 0:00:03]} Rd8 {[%emt 0:00:33]} 0-1

[Event "ISR-chT 2020"]
[Site "Israel"]
[Date "2020.01.18"]
[Round "4.3"]
[White "Danny, Raznikov"]
[Black "Alexander, Moiseenko"]
[Result "1/2-1/2"]
[ECO "D30"]
[WhiteElo "2506"]
[BlackElo "2620"]
[Annotator "ChessBase"]
[PlyCount "73"]
[EventDate "2020.01.10"]
[EventType "team-tourn"]
[EventCountry "ISR"]
[SourceTitle "playchess.com"]
[Source "ChessBase"]
[SourceQuality "1"]
[TimeControl "40/5400+30:1800+30"]

1. d4 {[%emt 0:00:00]} Nf6 {[%emt 0:00:00]} 2. c4 {[%emt 0:00:09]} e6 {[%emt 0:03:09]} 3. Nf3 {[%emt 0:00:06]} d5 {[%emt 0:01:20]} 4. e3 {[%emt 0:02:57]} a6 {[%emt 0:07:52]} 5. Nbd2 {[%emt 0:09:51]} b6 {[%emt 0:09:57]} 6. b3 {[%emt 0:04:29]} Bb7 {[%emt 0:00:49]} 7. Bb2 {[%emt 0:00:57]} Bd6 {[%emt 0:03:02]} 8. Bd3 {[%emt 0:01:50]} O-O {[%emt 0:01:00]} 9. O-O {[%emt 0:01:35]} Ne4 {[%emt 0:02:17]} 10. Rc1 {[%emt 0:09:57]} f5 {[%emt 0:17:02]} 11. cxd5 exd5 {[%emt 0:00:22]} 12. Ne5 {[%emt 0:05:49]} Bxe5 13. dxe5 {[%emt 0:00:09]} c5 {[%emt 0:03:21]} 14. f3 {[%emt 0:04:36]} Nxd2 15. Qxd2 {[%emt 0:00:05]} Nc6 {[%emt 0:01:54]} 16. Be2 {[%emt 0:07:20]} a5 {[%emt 0:04:08]} 17. Rfd1 {[%emt 0:05:53]} Ne7 {[%emt 0:01:14]} 18. f4 {[%emt 0:05:48]} Qd7 {[%emt 0:02:07]} 19. Bf3 {[%emt 0:01:04]} Qe6 {[%emt 0:02:22]} 20. h3 {[%emt 0:07:25]} Rfd8 {[%emt 0:08:16]} 21. g4 {[%emt 0:04:22]} Bc6 {[%emt 0:02:19]} 22. Qg2 {[%emt 0:05:10]} Rac8 {[%emt 0:00:51]} 23. Rd2 {[%emt 0:05:32]} Rd7 {[%emt 0:03:01]} 24. Rcd1 {[%emt 0:00:53]} Rcd8 {[%emt 0:01:02]} 25. Kh2 {[%emt 0:01:28]} Rf8 {[%emt 0:09:48]} 26. Rd3 {[%emt 0:02:01]} Rfd8 {[%emt 0:00:36]} 27. Bc3 {[%emt 0:01:12]} Rf8 {[%emt 0:07:09]} 28. Be1 {[%emt 0:04:41]} Qh6 {[%emt 0:02:29]} 29. gxf5 {[%emt 0:02:50]} Nxf5 {[%emt 0:00:14]} 30. Bf2 {[%emt 0:00:34]} Ne7 {[%emt 0:02:40]} 31. Bg3 {[%emt 0:02:34]} Nf5 {[%emt 0:00:44]} 32. Bf2 {[%emt 0:00:01]} Ne7 {[%emt 0:00:02]} 33. Qg4 {[%emt 0:01:05]} Kh8 {[%emt 0:01:42]} 34. Rg1 {[%emt 0:02:18]} Nf5 {[%emt 0:00:54]} 35. Rgd1 {[%emt 0:00:18]} Ne7 {[%emt 0:01:17]} 36. Bg3 {[%emt 0:01:12]} Nf5 {[%emt 0:00:56]} 37. Bf2 {[%emt 0:01:32]} 1/2-1/2

[Event "ISR-chT 2020"]
[Site "Israel"]
[Date "2020.01.18"]
[Round "4.4"]
[White "Or, Bronstein"]
[Black "Vitali, Golod"]
[Result "1/2-1/2"]
[ECO "D80"]
[WhiteElo "2428"]
[BlackElo "2503"]
[Annotator "ChessBase"]
[PlyCount "47"]
[EventDate "2020.01.10"]
[EventType "team-tourn"]
[EventCountry "ISR"]
[SourceTitle "playchess.com"]
[Source "ChessBase"]
[SourceQuality "1"]
[TimeControl "40/5400+30:1800+30"]

1. d4 {[%emt 0:00:00]} Nf6 {[%emt 0:00:00]} 2. c4 {[%emt 0:00:30]} g6 {[%emt 0:00:16]} 3. Nc3 {[%emt 0:00:45]} d5 {[%emt 0:00:05]} 4. e3 {[%emt 0:05:58]} Bg7 {[%emt 0:00:21]} 5. cxd5 {[%emt 0:00:18]} Nxd5 {[%emt 0:00:30]} 6. Nxd5 Qxd5 {[%emt 0:00:00]} 7. Ne2 {[%emt 0:00:33]} O-O {[%emt 0:06:02]} 8. Nc3 {[%emt 0:00:29]} Qd8 {[%emt 0:06:12]} 9. Be2 {[%emt 0:02:37]} c6 {[%emt 0:18:18]} 10. O-O {[%emt 0:01:36]} e5 {[%emt 0:00:05]} 11. dxe5 Bxe5 {[%emt 0:00:07]} 12. e4 {[%emt 0:04:56]} Qh4 {[%emt 0:26:08]} 13. f4 {[%emt 0:04:00]} Rd8 {[%emt 0:00:04]} 14. Qe1 {[%emt 0:20:17]} Bd4+ {[%emt 0:00:41]} 15. Kh1 {[%emt 0:03:06]} Qxe1 16. Rxe1 {[%emt 0:01:09]} f5 {[%emt 0:14:57]} 17. Rd1 {[%emt 0:02:42]} c5 {[%emt 0:11:01]} 18. Nb5 {[%emt 0:08:39]} Nc6 {[%emt 0:00:02]} 19. e5 {[%emt 0:05:50]} Rb8 {[%emt 0:03:55]} 20. Nxd4 {[%emt 0:06:27]} Nxd4 {[%emt 0:00:48]} 21. Bc4+ {[%emt 0:00:12]} Be6 {[%emt 0:01:38]} 22. Bxe6+ {[%emt 0:12:27]} Nxe6 {[%emt 0:00:01]} 23. Be3 {[%emt 0:00:08]} Kf7 {[%emt 0:02:03]} 24. Kg1 {[%emt 0:00:07]} 1/2-1/2

[Event "ISR-chT 2020"]
[Site "Israel"]
[Date "2020.01.18"]
[Round "4.6"]
[White "Alexander, Kaspi"]
[Black "Roman, Bar"]
[Result "1/2-1/2"]
[ECO "B51"]
[WhiteElo "2456"]
[BlackElo "2498"]
[Annotator "RC"]
[PlyCount "47"]
[EventDate "2020.01.10"]
[EventType "team-tourn"]
[EventCountry "ISR"]
[SourceTitle "playchess.com"]
[Source "ChessBase"]
[SourceQuality "1"]
[TimeControl "40/5400+30:1800+30"]

1. e4 {[%emt 0:00:00]} c5 {[%emt 0:00:02]} 2. Nf3 {[%emt 0:00:00]} d6 {[%emt 0:00:08]} 3. Bb5+ {[%emt 0:00:54]} Nd7 {[%emt 0:00:21]} 4. Ba4 {[%emt 0:00:53]} Ngf6 {[%emt 0:00:34]} 5. O-O {[%emt 0:00:24]} a6 {[%emt 0:03:36]} 6. c4 {[%emt 0:00:41]} e5 {[%emt 0:00:56]} 7. d3 {[%emt 0:00:38]} h6 {[%emt 0:00:20]} 8. Nc3 {[%emt 0:00:44]} Be7 {[%emt 0:00:57]} 9. Nh4 {[%emt 0:02:36]} g6 {[%emt 0:03:05]} 10. Nf3 {[%emt 0:06:53]} Kf8 {[%emt 0:01:09]} 11. Rb1 {[%emt 0:01:28]} Kg7 {[%emt 0:03:15]} 12. Bd2 {[%emt 0:04:10]} Nb8 {[%emt 0:09:41]} 13. b4 {[%emt 0:18:40]} cxb4 14. Rxb4 {[%emt 0:00:14]} Nc6 {[%emt 0:02:20]} 15. Rb2 {[%emt 0:01:52]} Nd7 {[%emt 0:07:00]} 16. Be3 {[%emt 0:07:20]} Nc5 {[%emt 0:07:29]} 17. Bxc6 bxc6 {[%emt 0:00:15]} 18. d4 {[%emt 0:05:48]} Nd7 {[%emt 0:02:13]} 19. Qa4 {[%emt 0:10:53]} Qc7 {[%emt 0:01:45]} 20. d5 {[%emt 0:02:35]} c5 {[%emt 0:01:41]} 21. Rfb1 {[%emt 0:05:39]} Ra7 {[%emt 0:03:27]} 22. Bd2 {[%emt 0:02:59]} Bd8 {[%emt 0:02:36]} 23. Qc6 {[%emt 0:10:47]} f5 {[%emt 0:09:10]} 24. Qxc7 {[%emt 0:03:35]} 1/2-1/2